bitfinex-derivatives/quotes_SOLF0:USTF0_20250829
["timestamp","ask_amount","ask_price","bid_price","bid_amount"]
[1756479306928,7.63,208.73,208.54,5.28768124]
[1756479307129,7.63,208.73,208.55,5.28768124]
[1756479307723,7.63,208.73,208.56,5.28768124]
[1756479307923,7.63,208.73,208.56,87.02]
[1756479308425,7.63,208.73,208.55,5.28768124]
[1756479308619,18.7768042,208.71,208.51,317.77499441]
[1756479308821,14.35,208.7,208.48,5.28768124]
[1756479309019,7.63,208.69,208.48,5.28768124]
[1756479309324,21.98,208.69,208.48,5.28768124]
[1756479309725,21.98,208.69,208.46,5.28768124]
[1756479310425,14.35,208.68,208.45,150.1568042]
[1756479310629,14.35,208.67,208.45,150.1568042]
[1756479310820,7.63,208.65,208.45,150.1568042]
[1756479311022,7.63,208.65,208.45,18.7768042]
[1756479311330,18.89735705,208.64,208.44,142.64735705]
[1756479311535,7.63,208.63,208.44,142.64735705]
[1756479311734,11.26735705,208.64,208.44,142.64735705]
[1756479311921,7.63,208.63,208.44,142.64735705]
[1756479312928,7.63,208.62,208.42,11.26735705]
[1756479313921,7.63,208.63,208.43,11.26735705]
[1756479314126,7.63,208.62,208.43,11.26735705]
[1756479315022,7.63,208.63,208.43,11.26735705]
[1756479315328,7.63,208.63,208.35,205.23490723]
[1756479315329,7.63,208.59,208.4,10.1]
[1756479315727,7.63,208.59,208.43,11.26735705]
[1756479316325,7.63,208.59,208.37,5.28768124]
[1756479316531,7.63,208.59,208.41,11.26735705]
[1756479316732,7.63,208.59,208.41,127.70735705]
[1756479316929,7.63,208.59,208.41,11.26735705]
[1756479317130,7.63,208.59,208.42,0.04]
[1756479317933,7.63,208.59,208.46,0.04]
[1756479319633,7.63,208.66,208.46,0.04]
[1756479319833,138.97,208.66,208.46,0.04]
[1756479320132,7.63,208.66,208.5,0.04]
[1756479320837,7.63,208.66,208.54,0.04]
[1756479321736,126.67030595,208.67,208.48,0.04]
[1756479321737,7.63,208.64,208.48,0.04]
[1756479321934,11.26735705,208.61,208.43,11.30735705]
[1756479322136,7.63,208.59,208.43,0.04]
[1756479326143,7.63,208.59,208.44,11.26735705]
[1756479326342,143.40205957,208.62,208.43,11.30735705]
[1756479326734,7.63,208.61,208.43,11.30735705]
[1756479327440,143.40205957,208.62,208.43,0.04]
[1756479327643,7.63,208.61,208.43,0.04]
[1756479329040,21.98,208.61,208.43,0.04]
[1756479329242,7.63,208.57,208.37,11.30735705]
[1756479329542,7.63,208.57,208.41,11.26735705]
[1756479329742,7.63,208.57,208.42,0.04]
[1756479329948,7.63,208.57,208.46,0.04]
[1756479330343,7.63,208.63,208.46,0.04]
[1756479330735,7.63,208.63,208.47,11.26735705]
[1756479330944,7.63,208.63,208.48,0.04]
[1756479332839,7.63,208.63,208.5,11.26735705]
[1756479333347,7.63,208.63,208.48,0.04]
[1756479337849,133.81030595,208.67,208.55,11.26735705]
[1756479338048,133.81030595,208.67,208.48,5.28768124]
[1756479338254,133.81030595,208.67,208.55,11.26735705]
[1756479338947,133.81030595,208.67,208.51,11.26735705]
[1756479339149,7.14,208.66,208.51,11.26735705]
[1756479339352,7.14,208.66,208.49,28.86]
[1756479339647,7.14,208.66,208.48,11.26735705]
[1756479339851,11.26735705,208.63,208.44,11.26735705]
[1756479340052,7.14,208.61,208.44,26.22735705]
[1756479340241,7.14,208.61,208.44,31.51503829]
[1756479340444,7.14,208.61,208.44,16.55503829]
[1756479341140,7.14,208.61,208.44,11.26735705]
[1756479341345,7.14,208.61,208.44,16.55503829]
[1756479341546,7.14,208.61,208.44,67.00735705]
[1756479341751,7.14,208.61,208.44,11.26735705]
[1756479342054,11.26735705,208.62,208.44,11.26735705]
[1756479342248,7.14,208.61,208.44,11.26735705]
[1756479342551,7.14,208.6,208.43,40.64]
[1756479343249,7.14,208.59,208.42,11.26735705]
[1756479343552,14.35,208.57,208.39,131.08]
[1756479343748,7.14,208.56,208.37,142.32735705]
[1756479343948,7.14,208.56,208.37,11.26735705]
[1756479344151,7.14,208.56,208.37,142.32735705]
[1756479344351,14.35,208.57,208.37,11.26735705]
[1756479344552,14.35,208.57,208.37,142.32735705]
[1756479344855,7.14,208.56,208.37,11.26735705]
[1756479345256,7.14,208.56,208.38,131.06]
[1756479345557,7.14,208.56,208.37,142.32735705]
[1756479345753,7.14,208.56,208.37,147.61503829]
[1756479345953,7.14,208.56,208.38,5.28768124]
[1756479346155,7.14,208.56,208.39,131.04]
[1756479346352,11.26735705,208.56,208.38,5.28768124]
[1756479346551,7.14,208.55,208.37,11.26735705]
[1756479346757,7.14,208.55,208.38,131.04]
[1756479346952,11.26735705,208.56,208.37,147.59503829]
[1756479347153,25.61735705,208.56,208.37,11.26735705]
[1756479347948,7.14,208.55,208.37,11.26735705]
[1756479348149,25.61735705,208.56,208.37,142.28735705]
[1756479348355,7.14,208.54,208.37,142.28735705]
[1756479348555,7.14,208.55,208.37,147.57503829]
[1756479348756,7.14,208.55,208.37,142.28735705]
[1756479348952,7.14,208.54,208.37,136.30768124]
[1756479349259,7.14,208.54,208.37,131.02]
[1756479349659,21.49,208.54,208.36,5.28768124]
[1756479349856,21.49,208.51,208.35,186.03602831]
[1756479350061,7.14,208.43,208.26,5.28768124]
[1756479350360,7.14,208.43,208.25,5.28768124]
[1756479350559,7.14,208.43,208.26,5.28768124]
[1756479350854,7.14,208.43,208.25,5.28768124]
[1756479351059,7.14,208.43,208.26,9.72]
[1756479351257,7.14,208.43,208.26,14.76]
[1756479352359,7.14,208.39,208.24,11.26735705]
[1756479352558,7.14,208.39,208.24,16.55503829]
[1756479352748,28.98735705,208.47,208.25,5.28768124]
[1756479352953,7.14,208.46,208.28,11.26735705]
[1756479353155,7.14,208.46,208.29,16.55503829]
[1756479353352,7.14,208.46,208.29,27.56735705]
[1756479353660,7.14,208.47,208.29,27.24]
[1756479353956,7.14,208.46,208.29,27.24]
[1756479354455,7.14,208.46,208.29,38.50735705]
[1756479354655,7.14,208.46,208.34,11.26735705]
[1756479354863,7.14,208.52,208.34,11.26735705]
[1756479355656,7.14,208.52,208.34,16.55503829]
[1756479355861,7.14,208.52,208.35,130.98]
[1756479356058,7.14,208.52,208.34,11.26735705]
[1756479356363,7.14,208.52,208.3,327.62768124]
[1756479356364,7.14,208.52,208.38,11.26735705]
[1756479357764,7.14,208.52,208.39,130.98]
[1756479358358,11.26735705,208.6,208.39,130.98]
[1756479358657,7.14,208.59,208.4,5.28768124]
[1756479358861,7.14,208.59,208.39,130.98]
[1756479358862,7.14,208.59,208.41,11.26735705]
[1756479359062,21.49,208.6,208.41,11.26735705]
[1756479359361,7.14,208.56,208.37,16.55503829]
[1756479359561,7.14,208.56,208.37,11.26735705]
[1756479359755,11.26735705,208.57,208.37,11.26735705]
[1756479359956,7.14,208.56,208.37,11.26735705]
[1756479360152,11.26735705,208.57,208.37,142.20735705]
[1756479360566,7.14,208.61,208.46,11.26735705]
[1756479361260,11.26735705,208.58,208.39,54.78]
[1756479361460,7.14,208.57,208.39,54.78]
[1756479361659,7.14,208.57,208.35,5.28768124]
[1756479361862,7.14,208.53,208.35,11.26735705]
[1756479362262,7.14,208.53,208.32,5.28768124]
[1756479362566,7.14,208.49,208.31,130.92]
[1756479362861,7.14,208.51,208.32,130.92]
[1756479363066,11.26735705,208.48,208.29,194.24479875]
[1756479363270,7.14,208.46,208.29,325.16479875]
[1756479364361,7.14,208.47,208.29,182.9774417]
[1756479364561,7.14,208.45,208.29,182.9774417]
[1756479365265,7.14,208.45,208.3,11.26735705]
[1756479366368,7.14,208.51,208.34,11.26735705]
[1756479367366,7.14,208.51,208.34,96.28735705]
[1756479367664,11.26735705,208.52,208.34,11.26735705]
[1756479367873,7.61,208.47,208.29,182.9774417]
[1756479368863,7.61,208.45,208.29,182.9774417]
[1756479369259,7.61,208.45,208.29,313.8574417]
[1756479370265,7.61,208.45,208.29,182.9774417]
[1756479370464,7.61,208.45,208.29,313.8374417]
[1756479370671,7.61,208.45,208.29,325.10479875]
[1756479371773,7.61,208.47,208.29,194.24479875]
[1756479371974,7.61,208.47,208.29,291.16479875]
[1756479372168,11.26735705,208.48,208.29,291.16479875]
[1756479372375,7.61,208.47,208.29,291.16479875]
[1756479372567,7.61,208.54,208.33,11.26735705]
[1756479372774,7.61,208.61,208.34,5.28768124]
[1756479372969,7.61,208.57,208.39,11.26735705]
[1756479373273,7.61,208.57,208.4,8.0]
[1756479373773,7.61,208.57,208.39,11.26735705]
[1756479373971,7.61,208.57,208.37,11.26735705]
[1756479374166,25.61735705,208.57,208.38,130.84]
[1756479374366,7.61,208.52,208.35,11.26735705]
[1756479374879,11.26735705,208.53,208.35,11.26735705]
[1756479375072,7.61,208.51,208.36,130.84]
[1756479375273,7.61,208.51,208.34,453.24]
[1756479376479,14.35,208.52,208.34,322.42]
[1756479376776,7.61,208.51,208.34,322.42]
[1756479377775,14.35,208.52,208.34,322.42]
[1756479377975,7.61,208.51,208.34,333.68735705]
[1756479379479,7.61,208.5,208.34,322.42]
[1756479380183,11.26735705,208.49,208.34,322.42]
[1756479380383,11.26735705,208.49,208.35,130.78]
[1756479380585,11.26735705,208.49,208.35,130.76]
[1756479380885,11.26735705,208.49,208.36,130.76]
[1756479381885,11.26735705,208.53,208.36,130.76]
[1756479382580,322.4,208.57,208.37,11.26735705]
[1756479382985,322.4,208.57,208.38,5.28768124]
[1756479383179,322.4,208.57,208.37,11.26735705]
[1756479383180,322.4,208.57,208.37,16.55503829]
[1756479383387,322.4,208.57,208.38,5.28768124]
[1756479383580,322.4,208.57,208.37,16.55503829]
[1756479383780,322.4,208.57,208.38,5.28768124]
[1756479384286,7.61,208.58,208.41,11.26735705]
[1756479384486,7.61,208.58,208.42,130.72]
[1756479384689,7.61,208.58,208.42,130.7]
[1756479385084,11.26735705,208.59,208.42,130.7]
[1756479385290,11.26735705,208.59,208.41,130.7]
[1756479385585,11.26735705,208.55,208.36,5.28768124]
[1756479385780,29.92,208.54,208.36,130.7]
[1756479385985,29.92,208.54,208.34,322.42]
[1756479385986,7.61,208.5,208.34,322.42]
[1756479386185,7.61,208.5,208.35,130.68]
[1756479387385,7.61,208.5,208.34,453.1]
[1756479390089,7.61,208.46,208.29,182.9774417]
[1756479390288,7.61,208.46,208.3,130.64]
[1756479390497,11.26735705,208.43,208.29,182.9774417]
[1756479390791,7.61,208.42,208.29,182.9774417]
[1756479391492,7.79808481,208.5,208.29,182.9774417]
[1756479391493,7.61,208.56,208.39,11.26735705]
[1756479391689,11.26735705,208.53,208.39,11.18]
[1756479391889,11.26735705,208.53,208.33,11.26735705]
[1756479392095,7.61,208.52,208.36,48.5]
[1756479392591,7.61,208.48,208.29,182.9774417]
[1756479392796,11.26735705,208.45,208.29,182.9774417]
[1756479392998,103.8,208.46,208.29,182.9774417]
[1756479393394,7.61,208.42,208.28,99.04]
[1756479394498,7.61,208.42,208.26,4.00509416]
[1756479394698,107.22,208.41,208.26,4.00509416]
[1756479394997,107.22,208.41,208.25,4.00509416]
[1756479395389,107.22,208.41,208.26,4.00509416]
[1756479395602,107.22,208.41,208.25,4.00509416]
[1756479396094,7.61,208.4,208.25,4.00509416]
[1756479396295,7.61,208.4,208.24,4.00509416]
[1756479396888,7.61,208.4,208.25,4.00509416]
[1756479397291,11.26735705,208.48,208.26,11.26735705]
[1756479397494,18.99735705,208.44,208.26,11.26735705]
[1756479397695,7.73,208.43,208.26,11.26735705]
[1756479397997,7.73,208.43,208.26,15.27245121]
[1756479398198,11.26735705,208.44,208.26,11.26735705]
[1756479398401,7.73,208.43,208.24,4.00509416]
[1756479398595,11.26735705,208.4,208.23,4.00509416]
[1756479398796,7.73,208.39,208.22,326.40509416]
[1756479398993,11.26735705,208.4,208.2,190.5977187]
[1756479399201,7.73,208.39,208.2,190.5977187]
[1756479399397,7.73,208.39,208.2,186.59262454]
[1756479399699,7.73,208.39,208.21,4.00509416]
[1756479399700,81.16,208.38,208.21,4.00509416]
[1756479400197,7.73,208.39,208.21,4.00509416]
[1756479400599,10.26,208.38,208.22,4.00509416]
[1756479400794,24.09,208.39,208.22,4.00509416]
[1756479400999,24.09,208.39,208.23,4.00509416]
[1756479401299,25.74,208.38,208.21,4.00509416]
[1756479401602,7.73,208.37,208.21,4.00509416]
[1756479401801,7.73,208.34,208.18,4.00509416]
[1756479402101,7.73,208.3,208.14,4.00509416]
[1756479402302,11.26735705,208.27,208.1,4.00509416]
[1756479402499,112.65,208.26,208.07,4.00509416]
[1756479403196,87.34,208.25,208.1,11.26735705]
[1756479403602,7.73,208.26,208.11,4.00509416]
[1756479404200,11.26735705,208.23,208.08,4.00509416]
[1756479404400,22.08,208.22,208.03,4.00509416]
[1756479404698,7.73,208.18,207.99,4.00509416]
[1756479405297,7.73,208.16,207.98,4.00509416]
[1756479405806,7.73,208.16,207.97,135.44129091]
[1756479406105,7.73,208.16,208.01,4.00509416]
[1756479406306,7.73,208.16,208.0,11.26735705]
[1756479406503,7.73,208.16,208.0,15.27245121]
[1756479407005,7.73,208.16,208.0,11.26735705]
[1756479407199,7.73,208.16,207.99,4.00509416]
[1756479407200,7.73,208.16,207.98,4.00509416]
[1756479407407,7.73,208.16,207.97,131.43619675]
[1756479408705,7.73,208.14,207.97,0.83619675]
[1756479409008,7.73,208.1,207.94,453.14]
[1756479409703,7.73,208.1,207.94,322.52]
[1756479409898,7.73,208.1,207.93,141.88735705]
[1756479409899,7.73,208.1,207.91,11.26735705]
[1756479410099,7.73,208.1,207.91,141.88735705]
[1756479410301,7.73,208.08,207.92,11.26735705]
[1756479410703,11.26735705,208.16,207.96,11.26735705]
[1756479410904,7.73,208.15,207.96,133.06735705]
[1756479411605,7.73,208.15,208.0,11.26735705]
[1756479411806,7.73,208.15,207.97,42.94]
[1756479413209,7.73,208.15,207.96,11.26735705]
[1756479413410,7.73,208.15,208.0,11.26735705]
[1756479413603,7.73,208.15,208.04,11.26735705]
[1756479413804,100.31,208.21,208.04,11.26735705]
[1756479414011,7.73,208.2,208.02,11.26735705]
[1756479414714,103.84735705,208.21,208.02,11.26735705]
[1756479415008,103.84735705,208.21,207.98,11.26735705]
[1756479415310,7.73,208.39,208.1,11.26735705]
[1756479415610,18.99735705,208.35,208.13,11.26735705]
[1756479416004,7.73,208.35,208.17,11.26735705]
[1756479416511,7.73,208.35,208.15,67.2546]
[1756479416512,78.46105705,208.34,208.15,67.2546]
[1756479416707,7.73,208.29,208.17,67.2482]
[1756479417013,7.73,208.29,208.18,4.3228]
[1756479417310,11.26735705,208.32,208.2,4.3223]
[1756479417510,11.26735705,208.33,208.2,4.3223]
[1756479417708,23.31695705,208.34,208.2,4.3223]
[1756479418003,4.3201,208.32,208.2,4.3223]
[1756479418304,11.26735705,208.3,208.17,4.323]
[1756479418812,11.26735705,208.26,208.14,4.3236]
[1756479419411,7.73,208.25,208.14,4.3236]
[1756479419608,7.73,208.25,208.15,67.2546]
[1756479419812,7.73,208.25,208.13,67.2611]
[1756479420111,18.99735705,208.25,208.11,67.2671]
[1756479420310,18.99735705,208.25,208.15,4.3234]
[1756479420512,7.73,208.36,208.23,67.226]
[1756479420712,11.26735705,208.41,208.25,67.2214]
[1756479420907,11.26735705,208.41,208.26,67.219]
[1756479421215,11.26735705,208.41,208.23,197.826]
[1756479421411,7.73,208.4,208.24,67.2255]
[1756479421709,4.3185,208.39,208.24,67.2248]
[1756479421916,4.3185,208.39,208.27,4.3209]
[1756479422111,7.73,208.4,208.27,67.2143]
[1756479422317,12.0484,208.4,208.25,67.2217]
[1756479422513,7.73,208.4,208.26,4.321]
[1756479422814,193.84841749,208.42,208.18,67.2437]
[1756479422815,11.26735705,208.35,208.18,67.2437]
[1756479423017,4.32,208.32,208.16,197.8297]
[1756479423315,74.9243,208.34,208.2,4.3223]
[1756479423509,4.3202,208.31,208.2,4.3223]
[1756479424214,7.73,208.34,208.17,453.34]
[1756479424512,7.73,208.31,208.17,322.78]
[1756479424715,4.3208,208.28,208.18,4.3228]
[1756479424920,78.47735705,208.29,208.12,67.2643]
[1756479425118,67.2132,208.28,208.11,197.8258]
[1756479425318,7.73,208.27,208.14,4.3237]
[1756479425518,7.73,208.27,208.13,67.2598]
[1756479425713,74.9476,208.27,208.13,4.3238]
[1756479425907,7.73,208.24,208.06,11.26735705]
[1756479426112,7.73,208.24,208.07,197.8389]
[1756479426314,4.3223,208.21,208.1,4.3244]
[1756479426515,7.73,208.18,208.05,181.82135675]
[1756479426907,4.3231,208.17,208.06,4.3253]
[1756479427114,7.73,208.18,208.05,181.86135675]
[1756479427513,17.85794674,208.24,208.1,4.3245]
[1756479427819,7.44,208.23,208.1,4.3245]
[1756479428417,7.44,208.21,208.07,4.325]
[1756479428619,7.44,208.19,208.07,4.325]
[1756479428811,11.7628,208.19,208.07,4.325]
[1756479429216,11.7628,208.19,208.09,4.3247]
[1756479430014,7.44,208.19,208.07,0.04]
[1756479430415,7.44,208.25,208.07,0.04]
[1756479430622,52.88,208.25,208.07,0.04]
[1756479431212,7.44,208.25,208.07,17.85794674]
[1756479431417,7.44,208.25,208.08,0.04]
[1756479434420,7.44,208.25,208.09,0.04]
[1756479436020,7.44,208.21,207.98,127.04]
[1756479436219,7.44,208.21,207.99,0.04]
[1756479436719,31.3,208.21,207.99,0.04]
[1756479437128,7.44,208.21,207.99,0.04]
[1756479437324,7.44,208.21,208.0,17.85794674]
[1756479437831,7.44,208.2,207.98,127.0]
[1756479438118,7.44,208.2,208.04,17.85794674]
[1756479438323,7.44,208.28,208.04,17.85794674]
[1756479438519,18.34,208.28,208.04,17.85794674]
[1756479438725,18.34,208.28,208.09,17.85794674]
[1756479438726,7.44,208.28,208.09,17.85794674]
[1756479438919,7.44,208.28,208.1,13.9]
[1756479439226,7.44,208.28,208.14,17.85794674]
[1756479441424,7.44,208.28,208.12,130.54]
[1756479441926,14.42,208.33,208.08,313.97765415]
[1756479442424,14.42,208.32,208.08,313.97765415]
[1756479442726,7.44,208.3,208.08,313.97765415]
[1756479443115,25.54,208.31,208.08,313.97765415]
[1756479443521,7.44,208.3,208.08,313.97765415]
[1756479443719,39.96,208.31,208.08,313.97765415]
[1756479443921,7.44,208.3,208.08,313.97765415]
[1756479444122,21.86,208.3,208.08,183.43765415]
[1756479444322,14.42,208.3,208.08,183.43765415]
[1756479444724,7.44,208.29,208.08,183.43765415]
[1756479444925,14.42,208.3,208.08,183.43765415]
[1756479445324,45.24,208.29,208.08,183.43765415]
[1756479445730,7.44,208.28,208.08,183.43765415]
[1756479446522,7.44,208.28,208.08,188.72533539]
[1756479446724,7.44,208.27,208.08,183.43765415]
[1756479447028,7.44,208.27,208.09,130.52]
[1756479447324,11.30566081,208.29,208.09,141.82566081]
[1756479447626,7.44,208.28,208.09,141.82566081]
[1756479448228,57.86566081,208.3,208.09,141.82566081]
[1756479448629,7.44,208.29,208.09,141.82566081]
[1756479448829,7.44,208.29,208.13,11.30566081]
[1756479449531,57.86566081,208.3,208.1,11.30566081]
[1756479450537,11.30566081,208.26,208.08,183.43765415]
[1756479450726,7.44,208.25,208.08,183.43765415]
[1756479450925,11.30566081,208.26,208.08,183.43765415]
[1756479451231,7.44,208.21,208.08,183.43765415]
[1756479452631,7.44,208.25,208.08,194.74331496]
[1756479453537,7.44,208.25,208.08,325.24331496]
[1756479454724,7.44,208.25,208.08,330.5309962]
[1756479455129,11.30566081,208.3,208.09,5.28768124]
[1756479455336,23.26,208.29,208.1,16.59334205]
[1756479455737,7.44,208.28,208.1,5.28768124]
[1756479456028,11.30566081,208.26,208.08,183.43765415]
[1756479456234,7.44,208.21,208.04,5.28768124]
[1756479456427,7.44,208.21,208.02,135.76768124]
[1756479456625,20.36,208.2,208.03,0.04]
[1756479456826,25.28,208.2,208.03,5.32768124]
[1756479457033,7.24,208.19,208.03,0.04]
[1756479457230,36.6,208.19,208.03,0.04]
[1756479457429,11.30566081,208.18,208.03,0.04]
[1756479457732,7.24,208.17,208.03,0.04]
[1756479458434,137.72,208.17,208.03,0.04]
[1756479460032,7.24,208.17,208.03,0.04]
[1756479460233,137.72,208.23,208.07,5.28768124]
[1756479460526,7.24,208.21,208.06,0.04]
[1756479460731,130.48,208.23,208.01,5.32768124]
[1756479460732,7.24,208.17,208.01,5.32768124]
[1756479460931,7.24,208.17,208.01,0.04]
[1756479461135,103.76,208.17,208.01,5.32768124]
[1756479461330,7.24,208.17,208.01,5.32768124]
[1756479461536,103.76,208.17,208.01,5.32768124]
[1756479461739,7.24,208.17,208.01,5.32768124]
[1756479462037,137.7,208.17,208.01,5.32768124]
[1756479462337,137.7,208.17,208.01,0.04]
[1756479462538,7.24,208.13,207.96,5.32768124]
[1756479462838,7.24,208.13,207.96,0.04]
[1756479463938,7.24,208.13,207.96,11.34566081]
[1756479464133,11.30566081,208.12,207.96,0.04]
[1756479464336,7.24,208.11,207.92,11.30566081]
[1756479464536,11.30566081,208.04,207.87,5.32768124]
[1756479464740,57.82,208.03,207.87,0.04]
[1756479465234,130.46,208.02,207.87,0.04]
[1756479465435,7.24,208.03,207.85,5.28768124]
[1756479465634,7.24,208.01,207.84,5.28768124]
[1756479466030,132.7,208.01,207.84,5.28768124]
[1756479466229,7.24,208.01,207.83,5.28768124]
[1756479466531,7.24,207.99,207.83,5.28768124]
[1756479466732,7.24,207.99,207.82,322.88]
[1756479467038,132.66,207.99,207.82,322.88]
[1756479467543,7.24,207.99,207.83,0.04]
[1756479467930,7.24,207.99,207.84,11.30566081]
[1756479468235,7.24,207.99,207.85,0.04]
[1756479468442,117.2,208.06,207.89,0.04]
[1756479469040,7.24,208.06,207.89,0.04]
[1756479470341,7.24,208.06,207.93,0.04]
[1756479472842,7.24,208.06,207.88,11.34566081]
[1756479473039,130.5,208.06,207.88,11.34566081]
[1756479473242,7.24,208.05,207.88,11.34566081]
[1756479473937,18.54566081,208.05,207.88,0.04]
[1756479474246,7.24,208.03,207.85,11.30566081]
[1756479474542,7.24,208.0,207.84,0.04]
[1756479476132,7.24,208.0,207.8,113.9]
[1756479476133,11.30566081,207.97,207.78,5.28768124]
[1756479476339,7.24,207.96,207.79,0.04]
[1756479478839,11.30566081,207.93,207.73,295.40268759]
[1756479479340,25.72566081,208.05,207.73,295.40268759]
[1756479479341,25.4,207.92,207.74,0.04]
[1756479479533,7.24,207.9,207.74,0.04]
[1756479481341,26.28,207.9,207.74,0.04]
[1756479481546,7.24,207.9,207.74,0.04]
[1756479483144,7.24,207.9,207.76,11.30566081]
[1756479484145,7.24,207.9,207.74,11.34566081]
[1756479485048,7.24,207.96,207.79,0.04]
[1756479485345,7.24,207.96,207.83,0.04]
[1756479485543,7.24,207.98,207.8,45.9]
[1756479485850,7.24,207.99,207.8,0.04]
[1756479486152,52.1,207.99,207.8,0.04]
[1756479486647,7.62,207.95,207.8,0.04]
[1756479487146,7.62,207.95,207.76,11.30566081]
[1756479487147,11.30566081,207.96,207.75,0.05]
[1756479487346,7.62,207.95,207.75,0.05]
[1756479487546,7.62,207.93,207.75,0.05]
[1756479487948,7.62,207.91,207.75,0.05]
[1756479491550,4.3291,207.88,207.76,67.3799]
[1756479491750,7.62,207.87,207.75,0.05]
[1756479492950,7.62,207.95,207.78,0.05]
[1756479494154,18.92566081,207.95,207.78,0.05]
[1756479494348,7.62,207.94,207.76,11.30566081]
[1756479494548,7.62,207.94,207.77,0.05]
[1756479495159,7.62,207.92,207.77,0.05]
[1756479496152,59.74566081,207.93,207.72,179.94454976]
[1756479496355,59.74566081,207.93,207.72,179.10719609]
[1756479496559,7.62,207.9,207.72,179.10719609]
[1756479496753,7.62,207.91,207.72,179.10719609]
[1756479497053,7.62,207.89,207.72,179.10719609]
[1756479497954,7.62,207.89,207.74,11.30566081]
[1756479498556,7.62,207.89,207.75,0.04]
[1756479499158,7.62,207.89,207.81,4.3304]
[1756479499356,7.62,207.89,207.75,11.34566081]
[1756479499555,7.62,207.89,207.76,0.04]
[1756479501559,22.04,207.85,207.62,0.04]
[1756479501756,49.7,207.84,207.65,0.04]
[1756479501960,7.62,207.83,207.65,0.04]
[1756479502760,7.62,207.83,207.69,0.04]
[1756479505664,7.62,207.83,207.69,11.34566081]
[1756479506066,7.62,207.83,207.63,117.58768124]
[1756479506067,7.62,207.9,207.74,0.04]
[1756479506564,7.62,207.97,207.78,0.04]
[1756479506758,7.62,207.93,207.78,0.04]
[1756479506958,11.30566081,207.9,207.73,242.00773392]
[1756479507159,11.30566081,207.9,207.73,174.61973392]
[1756479507564,7.62,207.85,207.7,67.3997]
[1756479507754,7.62,207.84,207.67,67.4077]
[1756479507955,7.62,207.84,207.73,67.3897]
[1756479508162,7.62,207.84,207.76,67.3798]
[1756479508362,7.62,207.9,207.77,67.3761]
[1756479509162,7.62,207.9,207.81,4.3305]
[1756479509665,7.62,207.9,207.76,0.04]
[1756479511070,7.62,207.9,207.79,11.30566081]
[1756479512170,7.62,207.9,207.76,11.34566081]
[1756479512373,7.62,207.9,207.8,11.30566081]
[1756479512566,7.62,207.95,207.81,0.04]
[1756479512969,7.62,207.95,207.85,11.30566081]
[1756479513266,7.62,207.95,207.81,28.12566081]
[1756479513568,7.62,207.95,207.81,11.34566081]
[1756479514770,7.62,207.95,207.81,0.04]
[1756479515870,7.62,207.95,207.82,4.3301]
[1756479516176,7.62,207.94,207.82,4.3301]
[1756479516670,7.73,207.88,207.72,5.28768124]
[1756479516874,7.73,207.88,207.72,11.30566081]
[1756479517272,7.73,207.89,207.73,0.05]
[1756479518173,7.73,207.89,207.73,5.33768124]
[1756479518766,7.73,207.89,207.76,11.30566081]
[1756479518967,7.73,207.89,207.77,0.05]